bitfinex-derivatives/quotes_SOLF0:USTF0_20240918
["timestamp","ask_amount","ask_price","bid_price","bid_amount"]
[1726648054255,10.9185,130.96,130.91,9.4]
[1726648062465,10.9185,130.96,130.92,9.4]
[1726648068869,10.9185,130.96,130.91,9.4]
[1726648069766,9.4,130.98,130.93,9.4]
[1726648071266,15.59045931,130.99,130.95,9.4]
[1726648071467,12.3746,131.0,130.95,9.4]
[1726648071768,0.0276,130.96,130.95,9.4]
[1726648072769,0.0276,130.96,130.94,9.4]
[1726648072968,0.0276,130.96,130.93,9.4]
[1726648074767,0.0276,130.96,130.94,9.4]
[1726648075165,0.0276,130.96,130.95,9.4]
[1726648075873,0.0276,130.96,130.95,13.2176]
[1726648076575,9.4,131.02,130.96,3.8172]
[1726648076763,9.4,131.02,130.98,9.4]
[1726648077562,15.28,131.03,130.94,3.8178]
[1726648077563,9.4,130.99,130.94,3.8178]
[1726648077872,9.4,130.96,130.89,2.9319]
[1726648078066,9.4,130.96,130.91,9.4]
[1726648078467,9.4,130.96,130.92,6.43156744]
[1726648078773,9.4,130.96,130.91,13.2188]
[1726648078974,9.4,130.96,130.92,6.43168702]
[1726648079173,9.4,130.96,130.91,13.2188]
[1726648079475,9.4,130.96,130.92,6.43169255]
[1726648079667,9.4,130.96,130.91,13.2188]
[1726648079870,9.4,130.96,130.92,15.83165769]
[1726648080069,9.4,130.96,130.92,9.4]
[1726648080271,9.4,130.97,130.93,9.4]
[1726648080768,9.4,130.96,130.92,9.4]
[1726648080971,9.4,130.96,130.9,3.819]
[1726648081172,9.4,130.96,130.91,9.4]
[1726648081372,9.4,130.96,130.92,6.43171116]
[1726648081573,9.4,130.96,130.91,9.4]
[1726648081975,9.4,130.96,130.92,6.43168988]
[1726648082276,9.4,130.96,130.91,9.4]
[1726648082978,9.4,130.96,130.91,3.8188]
[1726648083277,9.4,130.96,130.92,9.4]
[1726648084077,10.8237,130.98,130.94,9.4]
[1726648085371,9.4,130.97,130.91,3.8187]
[1726648085570,9.4,130.97,130.91,13.2187]
[1726648086173,9.4,130.94,130.89,2.9319]
[1726648086482,9.4,130.95,130.91,9.4]
[1726648087074,9.4,130.95,130.89,1.4913]
[1726648087280,9.4,130.95,130.9,9.4]
[1726648087481,3.77427174,130.96,130.83,1.4073]
[1726648087677,9.4,130.91,130.87,9.4]
[1726648088280,9.4,130.91,130.88,9.4]
[1726648092685,9.4,130.91,130.87,9.4]
[1726648093490,9.4,130.89,130.84,3.8208]
[1726648093690,9.4,130.89,130.85,15.83424371]
[1726648093899,9.4,130.9,130.86,9.4]
[1726648095194,9.4,130.9,130.84,3.8208]
[1726648095396,9.4,130.9,130.85,15.83425525]
[1726648095592,9.4,130.9,130.85,9.4]
[1726648096890,9.4,130.9,130.87,9.4]
[1726648097598,10.8908,130.92,130.87,9.4]
[1726648100191,1.4908,130.92,130.89,9.4]
[1726648100387,10.8583,130.93,130.89,9.4]
[1726648100597,1.4583,130.93,130.89,9.4]
[1726648102394,1.4583,130.93,130.88,3.8197]
[1726648102594,1.4583,130.93,130.89,9.4]
[1726648102991,9.4,130.92,130.87,3.8199]
[1726648103299,9.4,130.92,130.87,9.4]
[1726648103900,9.4,130.92,130.83,1.4073]
[1726648104102,9.4,130.92,130.87,9.4]
[1726648105291,1.4583,130.93,130.89,9.4]
[1726648105599,10.8583,130.93,130.89,9.4]
[1726648106400,1.4583,130.93,130.91,9.4]
[1726648106596,1.4348,130.94,130.83,1.4073]
[1726648106597,1.4348,130.94,130.9,9.4]
[1726648107890,10.8348,130.94,130.9,9.4]
[1726648109503,1.4348,130.94,130.9,9.4]
[1726648110403,13.6753,130.84,130.7,7.649]
[1726648110603,13.6753,130.84,130.79,9.4]
[1726648110801,9.4,130.85,130.79,9.4]
[1726648111103,9.4,130.88,130.82,9.4]
[1726648111306,9.4,130.86,130.8,9.4]
[1726648112192,1.4348,130.94,130.61,38.57081919]
[1726648112395,9.4,130.81,130.76,9.4]
[1726648112804,9.4,130.82,130.77,9.4]
[1726648113297,9.4,130.81,130.76,9.4]
[1726648113602,15.28,130.87,130.76,9.4]
[1726648113803,9.4,130.82,130.78,9.4]
[1726648113998,19.06873189,130.87,130.78,9.4]
[1726648114196,9.4,130.82,130.78,9.4]
[1726648114902,9.4,130.84,130.79,9.4]
[1726648115603,9.4,130.82,130.78,2.9075]
[1726648115903,14.69,130.84,130.78,2.9075]
[1726648117705,14.69,130.84,130.75,14.69]
[1726648118102,1.5166,130.86,130.77,14.69]
[1726648118703,14.69,130.85,130.76,14.69]
[1726648119100,14.69,130.83,130.76,14.69]
[1726648120807,14.69,130.83,130.76,18.5131]
[1726648121003,14.69,130.85,130.77,14.69]
[1726648121511,29.97,130.87,130.79,14.69]
[1726648121711,29.97,130.87,130.8,2.9165]
[1726648122507,14.69,130.87,130.8,2.9165]
[1726648123305,14.69,130.87,130.8,6.7385]
[1726648123506,14.69,130.87,130.8,2.9165]
[1726648125113,14.69,130.87,130.8,6.7384]
[1726648126615,14.69,130.89,130.81,3.8216]
[1726648126812,14.69,130.89,130.8,4.4447]
[1726648127207,14.69,130.89,130.8,8.2665]
[1726648127410,15.28,130.91,130.8,8.2665]
[1726648127411,14.69,130.87,130.8,8.2665]
[1726648134423,14.69,130.87,130.81,3.8217]
[1726648135829,14.69,130.87,130.8,8.2666]
[1726648136729,16.7572,130.92,130.8,8.2666]
[1726648136730,14.69,130.89,130.8,8.2666]
[1726648138034,9.39,130.86,130.8,17.6566]
[1726648141833,9.39,130.85,130.8,17.6566]
[1726648148332,9.39,130.85,130.8,4.4447]
[1726648148536,9.39,130.85,130.8,13.8347]
[1726648149431,9.39,130.84,130.8,4.4447]
[1726648149640,9.39,130.84,130.8,2.9165]
[1726648150928,9.39,130.84,130.8,12.3065]
[1726648158158,9.39,130.83,130.8,1.4866]
[1726648161046,9.39,130.81,130.75,1.4165]
[1726648161244,9.39,130.81,130.77,9.39]
[1726648161447,1.8451,130.86,130.78,9.39]
[1726648161448,3.73614642,130.85,130.78,9.39]
[1726648161656,9.39,130.83,130.78,13.2126]
[1726648161951,9.39,130.83,130.78,3.8226]
[1726648162158,1.532,130.86,130.79,13.2121]
[1726648162353,9.39,130.85,130.79,13.2121]
[1726648163451,9.39,130.84,130.79,13.2121]
[1726648167759,9.39,130.84,130.8,3.8219]
[1726648168060,9.39,130.85,130.81,9.39]
[1726648169158,9.39,130.85,130.8,3.8219]
[1726648169352,9.39,130.84,130.79,9.39]
[1726648169954,9.39,130.84,130.78,13.2124]
[1726648170159,9.39,130.81,130.76,9.39]
[1726648170662,9.39,130.81,130.77,13.2127]
[1726648171953,9.39,130.8,130.71,6.0]
[1726648172160,9.39,130.8,130.72,10.89781614]
[1726648172361,9.39,130.8,130.75,13.2133]
[1726648173066,9.39,130.79,130.75,3.8233]
[1726648173760,9.39,130.79,130.74,3.8237]
[1726648174063,9.39,130.79,130.74,13.2137]
[1726648176364,9.39,130.78,130.74,13.2137]
[1726648178465,9.39,130.78,130.73,13.2139]
[1726648178671,9.39,130.78,130.74,6.4390378]
[1726648178866,9.39,130.78,130.73,13.2139]
[1726648179067,9.39,130.78,130.74,6.4390378]
[1726648179271,9.39,130.78,130.75,6.4390378]
[1726648179468,9.39,130.78,130.73,13.2139]
[1726648179669,9.39,130.78,130.74,6.4390378]
[1726648179870,9.39,130.78,130.75,6.4390378]
[1726648180065,9.39,130.78,130.73,13.2139]
[1726648180266,9.39,130.78,130.74,6.4390378]
[1726648180470,9.39,130.78,130.75,6.4390378]
[1726648180671,9.39,130.78,130.73,13.2139]
[1726648180967,9.39,130.78,130.74,6.4390378]
[1726648181172,9.39,130.78,130.75,6.4390378]
[1726648181372,9.39,130.78,130.73,13.2139]
[1726648181573,9.39,130.78,130.74,6.4390378]
[1726648181785,9.39,130.78,130.73,13.2139]
[1726648181967,9.39,130.78,130.74,6.4390378]
[1726648182167,9.39,130.78,130.75,6.4390378]
[1726648182370,9.39,130.78,130.73,13.2139]
[1726648182668,0.3141,130.83,130.75,9.39]
[1726648182868,9.39,130.8,130.75,9.39]
[1726648183474,9.39,130.79,130.75,13.2133]
[1726648183671,9.39,130.79,130.75,3.8233]
[1726648183970,9.39,130.79,130.74,9.39]
[1726648183971,9.39,130.79,130.74,13.2136]
[1726648184174,9.39,130.79,130.75,6.43889802]
[1726648184477,9.39,130.79,130.74,9.39]
[1726648184676,9.39,130.79,130.75,6.43889802]
[1726648184973,9.39,130.79,130.74,13.2136]
[1726648185677,9.39,130.79,130.75,6.43889802]
[1726648185872,9.39,130.79,130.74,13.2136]
[1726648186076,9.39,130.79,130.75,6.43889814]
[1726648186276,9.39,130.79,130.74,13.2136]
[1726648186476,9.39,130.79,130.75,6.43889802]
[1726648186676,9.39,130.79,130.74,13.2136]
[1726648186875,9.39,130.79,130.75,6.43889802]
[1726648187076,9.39,130.79,130.74,13.2136]
[1726648190881,9.39,130.79,130.74,9.39]
[1726648191280,9.39,130.79,130.74,13.2136]
[1726648195083,9.39,130.78,130.74,13.2136]
[1726648196083,9.39,130.77,130.74,3.8236]
[1726648196587,9.39,130.77,130.73,3.8239]
[1726648196788,9.39,130.77,130.74,6.43903809]
[1726648196991,9.39,130.77,130.73,3.8239]
[1726648197184,9.39,130.77,130.74,6.439049]
[1726648197386,9.39,130.77,130.73,3.8239]
[1726648197586,9.39,130.77,130.74,6.439049]
[1726648197786,9.39,130.77,130.73,3.8239]
[1726648197983,9.39,130.77,130.74,6.43905049]
[1726648198183,9.39,130.77,130.73,3.8239]
[1726648198384,9.39,130.77,130.74,6.43905049]
[1726648198588,9.39,130.77,130.73,3.8239]
[1726648198789,9.39,130.77,130.74,6.43901555]
[1726648199089,9.39,130.77,130.73,3.8239]
[1726648199290,9.39,130.77,130.74,6.43901555]
[1726648199480,9.39,130.77,130.73,3.8239]
[1726648199685,9.39,130.77,130.74,6.43905049]
[1726648199990,9.39,130.77,130.73,3.8239]
[1726648200183,3.82661228,130.81,130.74,10.26268578]
[1726648200378,15.6141,130.83,130.75,9.39]
[1726648200585,9.39,130.82,130.77,9.39]
[1726648200788,9.39,130.82,130.77,13.2127]
[1726648200987,15.3,130.83,130.78,9.39]
[1726648200988,24.69,130.83,130.78,9.39]
[1726648201188,24.69,130.83,130.77,9.39]
[1726648201189,9.39,130.82,130.77,9.39]
[1726648201385,9.39,130.82,130.78,3.8225]
[1726648201584,15.3,130.83,130.77,9.39]
[1726648201887,24.69,130.83,130.79,3.8221]
[1726648202086,9.39,130.82,130.78,9.39]
[1726648202292,9.39,130.82,130.72,4.459]
[1726648202482,9.39,130.8,130.76,13.2129]
[1726648202682,15.3,130.83,130.72,4.459]
[1726648202683,9.39,130.81,130.77,6.43780512]
[1726648202985,9.39,130.81,130.77,13.2127]
[1726648203595,9.39,130.79,130.76,3.8231]
[1726648203796,9.39,130.79,130.77,6.43783086]
[1726648204097,9.39,130.78,130.74,9.39]
[1726648204389,9.39,130.78,130.75,6.43867578]
[1726648204588,9.39,130.77,130.73,9.39]
[1726648204789,9.39,130.77,130.74,6.43900926]
[1726648204990,9.39,130.77,130.73,9.39]
[1726648205388,9.39,130.77,130.73,13.2139]
[1726648205588,9.39,130.77,130.72,4.459]
[1726648205789,9.39,130.77,130.72,13.849]
[1726648206187,9.39,130.77,130.73,6.43976425]
[1726648206390,9.39,130.77,130.72,13.849]
[1726648206590,9.39,130.77,130.73,3.824]
[1726648209594,9.39,130.75,130.72,5.2842]
[1726648211499,0.3149,130.82,130.74,9.39]
[1726648211701,9.39,130.8,130.76,9.39]
[1726648212098,15.3,130.83,130.76,9.39]
[1726648212299,9.39,130.8,130.76,9.39]
[1726648212691,15.3,130.83,130.75,13.2133]
[1726648212692,9.39,130.79,130.75,13.2133]
[1726648213098,9.39,130.79,130.75,9.39]
[1726648213409,9.39,130.77,130.74,3.8236]
[1726648213606,9.39,130.77,130.73,12.3879]
[1726648213898,9.39,130.77,130.73,16.2118]
[1726648214403,9.39,130.77,130.74,3.8237]
[1726648214594,9.39,130.78,130.74,9.39]
[1726648214799,9.39,130.8,130.76,9.39]
[1726648215496,9.39,130.82,130.77,9.39]
[1726648215801,9.39,130.82,130.73,2.9979]
[1726648215802,9.39,130.82,130.78,9.39]
[1726648216107,9.39,130.82,130.77,13.2127]
[1726648216407,9.39,130.81,130.73,2.9979]
[1726648216603,9.39,130.81,130.76,9.39]
[1726648217202,9.39,130.81,130.76,13.213]
[1726648217897,15.3,130.83,130.76,13.213]
[1726648218096,9.39,130.8,130.76,13.213]
[1726648219498,9.39,130.8,130.76,9.39]
[1726648219706,9.39,130.8,130.75,13.2133]
[1726648220098,9.39,130.79,130.75,13.2133]
[1726648220802,9.39,130.79,130.75,3.8233]
[1726648221207,9.39,130.79,130.74,13.2136]
[1726648221705,9.39,130.78,130.73,5.3521]
[1726648222008,15.90726807,130.85,130.75,9.39]
[1726648222209,9.39,130.82,130.77,9.39]
[1726648222405,15.90726807,130.85,130.77,9.39]
[1726648222610,9.39,130.82,130.77,9.39]
[1726648222997,15.90726807,130.85,130.78,3.8226]
[1726648223202,9.39,130.82,130.77,9.39]
[1726648223703,9.39,130.82,130.77,13.2126]
[1726648224712,9.39,130.82,130.78,3.8225]
[1726648226116,9.39,130.81,130.76,9.39]
[1726648226515,9.39,130.81,130.76,13.213]
[1726648226717,9.39,130.81,130.75,9.39]
[1726648227120,9.39,130.81,130.76,3.8232]
[1726648227511,9.39,130.78,130.73,3.0242]
[1726648227718,9.39,130.77,130.74,3.8236]
[1726648229222,9.39,130.78,130.74,13.2136]
[1726648229615,9.39,130.8,130.75,9.39]
[1726648230821,15.90726807,130.85,130.74,9.39]
[1726648230822,9.39,130.79,130.74,9.39]
[1726648231514,9.39,130.79,130.75,3.8234]
[1726648231715,9.39,130.79,130.74,9.39]
[1726648232122,9.39,130.79,130.74,13.2136]
[1726648232319,9.39,130.77,130.74,3.8236]
[1726648234724,9.39,130.77,130.73,6.8481]
[1726648235026,9.39,130.77,130.73,16.2381]
[1726648235229,9.39,130.77,130.74,3.8237]
[1726648237627,9.39,130.77,130.73,16.2381]
[1726648238019,9.39,130.77,130.73,14.7421]
[1726648240226,9.39,130.77,130.73,5.3521]
[1726648240732,9.39,130.77,130.74,6.44002925]
[1726648240927,9.39,130.77,130.73,5.3521]
[1726648241127,9.39,130.77,130.74,6.44002373]
[1726648241328,9.39,130.77,130.73,5.3521]
[1726648241529,9.39,130.77,130.74,6.44002373]
[1726648241725,9.39,130.77,130.73,14.7421]
[1726648242130,9.39,130.77,130.74,6.44002373]
[1726648242331,9.39,130.77,130.74,3.8238]
[1726648243234,9.39,130.77,130.73,14.7421]
[1726648243531,9.39,130.77,130.74,6.44002373]
[1726648243729,9.39,130.77,130.73,14.7421]
[1726648243938,9.39,130.77,130.74,6.44002389]
[1726648244234,9.39,130.77,130.73,14.7421]
[1726648244435,9.39,130.77,130.74,6.44002389]
[1726648244733,9.39,130.76,130.73,5.3521]
[1726648244937,9.39,130.76,130.74,6.44002389]
[1726648245330,9.39,130.76,130.73,5.3521]
[1726648245729,9.39,130.76,130.73,1.5282]
[1726648246131,1.0,130.75,130.73,1.5282]
[1726648246938,10.39,130.75,130.72,11.2841]
[1726648247728,10.39,130.75,130.72,7.46]
[1726648251838,10.39,130.75,130.72,11.2843]
[1726648252140,1.0,130.75,130.72,20.6743]
[1726648255529,10.39,130.75,130.72,7.46]
[1726648255734,10.39,130.75,130.72,6.0]
[1726648256135,9.39,130.74,130.72,6.0]
[1726648259041,9.39,130.74,130.72,5.0]
[1726648260642,9.39,130.75,130.72,5.0]
[1726648260842,9.39,130.75,130.72,8.8243]
[1726648261038,15.9222303,130.8,130.72,8.8243]
[1726648261244,9.39,130.76,130.72,8.8243]
[1726648263435,9.39,130.76,130.72,7.8243]
[1726648275751,9.39,130.75,130.72,7.8243]
[1726648277150,9.39,130.75,130.72,4.0]
[1726648277746,9.39,130.73,130.72,4.0]
[1726648279759,15.918771,130.8,130.72,4.0]
[1726648280059,9.39,130.77,130.73,9.39]
[1726648280250,1.5257,130.8,130.73,12.2103]
[1726648280449,19.18352066,130.81,130.74,3.8237]
[1726648280753,9.39,130.78,130.74,3.8237]
[1726648281055,9.39,130.77,130.73,12.2103]
[1726648281464,9.39,130.76,130.73,2.8203]
[1726649522176,3.8184,130.93,130.9,3.819]
[1726649523165,3.8184,130.93,130.91,3.8188]
[1726649523668,3.8181,130.94,130.91,3.8188]
[1726649524373,3.8177,130.95,130.87,2.9795]
[1726649524881,3.8177,130.95,130.93,3.8182]
[1726649525766,3.8177,130.95,130.87,2.9795]
[1726649525971,3.8177,130.95,130.92,3.8184]
[1726649527066,3.8177,130.95,130.87,2.9795]
[1726649527067,3.818,130.94,130.87,2.9795]
[1726649527268,2.9179,130.98,130.91,3.8186]
[1726649527470,2.9179,130.98,130.87,2.9795]
[1726649528071,2.9179,130.98,130.91,3.8187]
[1726649528271,2.9179,130.98,130.87,2.9795]
[1726649528670,3.8182,130.93,130.9,3.8189]
[1726649528866,3.8182,130.93,130.87,2.9795]
[1726649529880,3.8182,130.93,130.91,3.8188]
[1726649531874,3.8182,130.93,130.9,3.8189]
[1726649532177,2.9179,130.98,130.86,1.14872073]
[1726649532577,2.9179,130.98,130.89,3.8192]
[1726649532783,3.8186,130.92,130.89,3.8192]
[1726649533387,3.8188,130.91,130.89,3.8192]
[1726649535981,3.8187,130.92,130.89,3.8192]
[1726649541396,3.8187,130.92,130.9,3.819]
[1726649542487,2.9179,130.98,130.9,3.819]
[1726649542488,3.8184,130.93,130.9,3.819]
[1726649545400,3.8185,130.92,130.9,3.819]
[1726649546101,3.8185,130.92,130.89,3.8192]
[1726649554301,2.9179,130.98,130.9,3.8191]
[1726649554302,3.8183,130.93,130.9,3.8191]
[1726649554707,3.8183,130.93,130.86,1.14872073]
[1726649555502,3.818,130.94,130.91,3.8187]
[1726649556808,3.8177,130.95,130.86,1.14872073]
[1726649557009,3.8177,130.95,130.87,3.0235]
[1726649557203,3.8177,130.95,130.92,3.8183]
[1726649558210,3.8175,130.96,130.92,3.8183]
[1726649562407,3.8177,130.95,130.91,3.8187]
[1726649563113,3.8179,130.94,130.91,3.8187]
[1726649570318,3.8179,130.94,130.92,3.8185]
[1726649571616,3.8179,130.94,130.91,3.8187]
[1726649574314,3.8183,130.93,130.91,3.8187]
[1726649579426,3.8183,130.93,130.9,3.8189]
[1726649582221,2.9179,130.98,130.89,3.8192]
[1726649583520,3.8184,130.93,130.9,3.819]
[1726649584527,3.818,130.94,130.91,3.8188]
[1726649584723,2.9179,130.98,130.86,1.14872073]
[1726649584922,2.9179,130.98,130.87,6.47984542]
[1726649585122,3.8176,130.96,130.92,3.8183]
[1726649586122,3.8177,130.95,130.92,3.8183]
[1726649589123,3.8177,130.95,130.86,1.14872073]
[1726649590133,3.8177,130.95,130.92,3.8182]
[1726649594732,3.8177,130.95,130.93,3.8182]
[1726649598530,3.8177,130.95,130.92,3.8184]
[1726649612848,3.818,130.94,130.92,3.8184]
[1726649619349,2.9179,130.98,130.86,1.14872073]
[1726649619555,2.9179,130.98,130.87,6.47886074]
[1726649619751,5.303,130.98,130.95,3.8174]
[1726649619957,5.303,130.98,130.88,10.4964]
[1726649620157,15.28,131.01,130.88,10.4964]
[1726649620359,3.8166,130.99,130.97,3.817]
[1726649621362,3.8166,130.99,130.96,3.8172]
[1726649624961,3.8168,130.98,130.95,3.8175]
[1726649625162,15.28,131.01,130.95,3.8175]
[1726649625559,3.8169,130.98,130.95,3.8175]
[1726649636269,3.8166,130.99,130.96,3.8172]
[1726649639668,3.8166,130.99,130.89,6.47868229]
[1726649639876,3.8168,130.98,130.95,3.8175]
[1726649641775,3.0523,131.02,130.9,1.4626]
[1726649642674,10.6839,131.02,130.9,1.4626]
[1726649642872,3.8181,130.94,130.9,3.8189]
[1726649643078,10.6839,131.02,130.9,3.8189]
[1726649643274,10.6839,131.02,130.85,2.9559]
[1726649643478,3.8184,130.93,130.89,3.8193]
[1726649643784,10.6839,131.02,130.89,3.8193]
[1726649643977,3.8184,130.93,130.89,3.8193]
[1726649647979,3.8181,130.94,130.85,2.9559]
[1726649648375,10.6839,131.02,130.86,6.4800289]
[1726649648576,3.8182,130.94,130.9,3.8188]
[1726649649670,3.8182,130.94,130.91,3.8188]
[1726649660791,3.8182,130.94,130.89,3.8192]
[1726649662593,3.8183,130.93,130.89,3.8192]
[1726649662794,3.8183,130.93,130.9,3.8191]
[1726649664288,3.8183,130.93,130.89,3.8192]
[1726649668494,3.8185,130.92,130.89,3.8192]
[1726649672509,3.8189,130.91,130.88,3.8196]
[1726649676704,3.8191,130.9,130.88,3.8196]
[1726649689622,35.81524512,130.9,130.87,3.8199]
[1726649692121,35.81524512,130.9,130.79,7.6446]
[1726649694622,141.90677227,130.9,130.87,3.8198]
[1726649695020,124.13113609,130.9,130.87,3.8198]
[1726649702228,106.09351069,130.9,130.88,3.8194]
[1726649703126,3.8191,130.9,130.88,3.8194]
[1726649728242,3.819,130.91,130.88,3.8195]
[1726649728650,3.8186,130.92,130.89,3.8192]
[1726649730249,1.4973,130.93,130.88,3.8195]
[1726649731547,3.8187,130.92,130.88,3.8195]
[1726649738245,3.8189,130.91,130.88,3.8195]
[1726649738455,1.4973,130.93,130.87,3.8199]
[1726649738655,1.4973,130.93,130.81,7.6433]
[1726649738855,3.8195,130.89,130.81,7.6433]
[1726649739053,3.8195,130.89,130.86,3.8201]
[1726649747764,3.8197,130.88,130.85,3.8204]
[1726649749365,1.4973,130.93,130.8,2.3864]
[1726649749861,3.8204,130.86,130.8,2.3864]
[1726649750266,3.8204,130.86,130.8,1.4248]
[1726649750662,3.8204,130.86,130.83,3.8211]
[1726649758471,3.8204,130.86,130.82,3.8213]
[1726649764468,3.8204,130.86,130.83,3.8211]
[1726649766483,3.8204,130.86,130.82,3.8213]
[1726649770877,3.8207,130.85,130.82,3.8213]
[1726649771075,1.4346,130.89,130.81,3.8216]
[1726649772080,3.8207,130.85,130.82,3.8213]
[1726649782492,3.8207,130.85,130.81,3.8216]
[1726649784592,1.4346,130.89,130.81,3.8216]
[1726649785495,3.8208,130.85,130.81,3.8216]
[1726649796495,3.8208,130.85,130.82,3.8213]
[1726649807102,3.8208,130.85,130.81,3.8216]
[1726649808309,3.8203,130.86,130.83,3.8209]
[1726649808509,3.8203,130.86,130.76,1.3349]
[1726649808706,3.8203,130.86,130.82,3.8212]
[1726649811911,1.4346,130.89,130.81,3.8216]
[1726649812616,3.8207,130.85,130.81,3.8216]
[1726649817017,3.8208,130.84,130.81,3.8216]
[1726649824131,3.8207,130.85,130.81,3.8216]
[1726649826839,3.8204,130.86,130.82,3.8212]
[1726649827135,1.4346,130.89,130.77,1.4327]
[1726649829635,15.85634284,130.89,130.77,1.4327]
[1726649829831,14.42174284,130.88,130.79,3.8222]
[1726649830136,1.4346,130.89,130.79,3.8222]
[1726649830334,1.5324,130.87,130.79,3.8222]
[1726649830536,3.8214,130.83,130.79,3.8222]
[1726649835433,3.821,130.84,130.8,3.8219]
[1726649835741,3.821,130.84,130.77,1.4327]
[1726649837839,3.821,130.84,130.8,3.8218]
[1726649845446,3.821,130.84,130.81,3.8217]
[1726649846845,3.821,130.84,130.8,3.8218]
[1726649862767,3.821,130.84,130.8,3.8218]
[1726649868173,3.821,130.84,130.8,3.8218]
[1726649880385,3.8209,130.84,130.8,3.8218]
[1726649880583,3.8209,130.84,130.79,3.8221]
[1726649880778,3.8212,130.83,130.79,3.8221]
[1726649884688,3.821,130.84,130.79,3.8221]
[1726649885091,3.8212,130.83,130.79,3.8221]
[1726649885290,3.8212,130.83,130.78,3.8224]
[1726649888195,3.8212,130.83,130.78,3.8224]
[1726649890696,3.821,130.84,130.79,3.8223]
[1726649896107,3.821,130.84,130.79,3.8223]
[1726649896301,5.2489,130.85,130.8,3.8219]
[1726649898703,5.2489,130.85,130.8,3.8219]
[1726649901212,1.4282,130.85,130.79,3.8221]
[1726649902113,1.4282,130.85,130.78,3.8224]
[1726649902309,1.4282,130.85,130.77,1.4327]
[1726649902504,3.8212,130.83,130.77,1.4327]
[1726649902707,1.4282,130.85,130.72,1.3375]
[1726649902910,1.4282,130.85,130.74,1.4957]
[1726649903406,3.8218,130.81,130.76,3.8229]
[1726649911921,3.8218,130.81,130.76,3.8229]
[1726649915023,3.8218,130.81,130.76,3.8229]
[1726649918027,3.8218,130.81,130.76,3.8229]
[1726649920628,3.8218,130.81,130.76,3.8229]
[1726649923131,3.8215,130.82,130.77,3.8228]
[1726649930333,3.8215,130.82,130.77,3.8228]
[1726649935936,3.8213,130.83,130.78,3.8226]
[1726649936132,3.8214,130.82,130.77,3.8228]
[1726649936438,1.4282,130.85,130.74,1.4957]
[1726649937138,3.8218,130.81,130.76,3.823]
[1726649943847,3.8215,130.82,130.77,3.8227]
[1726649954155,3.8215,130.82,130.77,3.8227]
[1726649966567,3.8215,130.82,130.77,3.8227]
[1726649972269,3.8215,130.82,130.77,3.8227]
[1726649975374,3.8215,130.82,130.77,3.8227]
[1726650112610,3.8218,130.81,130.76,3.8231]
[1726650123015,3.8213,130.83,130.74,1.4465]
[1726650123404,3.8215,130.82,130.77,3.8226]